bitfinex-derivatives/quotes_BNBF0:USTF0_20250810
["timestamp","ask_amount","ask_price","bid_price","bid_amount"]
[1754857019748,0.21676503,803.78,802.01,2.7980894]
[1754857020350,0.21676503,803.78,802.03,2.7980894]
[1754857020850,0.21676503,803.78,802.09,2.7980894]
[1754857021251,0.21676503,803.78,802.11,2.7980894]
[1754857021850,0.21676503,803.78,802.1,2.7980894]
[1754857022951,0.21676503,803.78,802.19,2.7980894]
[1754857023352,0.21676503,803.78,802.21,2.7980894]
[1754857023854,0.21676503,803.78,802.39,2.7980894]
[1754857024353,0.21676503,803.78,802.4,2.7980894]
[1754857025152,0.21676503,803.78,802.5,2.7980894]
[1754857026150,0.21676503,803.78,802.48,2.7980894]
[1754857026654,0.21676503,803.78,802.45,2.7980894]
[1754857027151,0.21676503,803.78,802.46,2.7980894]
[1754857027653,0.21676503,803.78,802.44,2.7980894]
[1754857028153,0.21676503,803.78,802.45,2.7980894]
[1754857028755,0.21676503,803.78,802.46,2.7980894]
[1754857029150,0.21676503,803.78,802.45,2.7980894]
[1754857029751,0.21676503,803.78,802.17,3.9173252]
[1754857029752,0.21676503,803.78,802.41,2.7980894]
[1754857030251,0.21676503,803.78,802.39,2.7980894]
[1754857030852,0.21676503,803.78,802.4,2.7980894]
[1754857031854,0.21676503,803.78,802.39,2.7980894]
[1754857032451,0.21676503,803.78,802.37,2.7980894]
[1754857032957,0.21676503,803.78,802.38,2.7980894]
[1754857033354,0.21676503,803.78,802.4,2.7980894]
[1754857034456,0.21676503,803.78,802.39,2.7980894]
[1754857034953,0.21676503,803.78,802.41,2.7980894]
[1754857035557,0.21676503,803.78,802.42,2.7980894]
[1754857036058,0.21676503,803.78,802.41,2.7980894]
[1754857036559,0.21676503,803.78,802.46,2.7980894]
[1754857037658,0.21676503,803.78,802.47,2.7980894]
[1754857038659,0.21676503,803.78,802.48,2.7980894]
[1754857039658,0.21676503,803.78,802.49,2.7980894]
[1754857040256,0.21676503,803.78,802.48,2.7980894]
[1754857040760,0.21676503,803.78,802.49,2.7980894]
[1754857041259,0.21676503,803.78,802.48,2.7980894]
[1754857041760,0.21676503,803.78,802.51,2.7980894]
[1754857042260,0.21676503,803.78,802.52,2.7980894]
[1754857042856,0.21676503,803.78,802.65,2.7980894]
[1754857043258,0.21676503,803.78,802.51,2.7980894]
[1754857043763,0.21676503,803.78,802.52,2.7980894]
[1754857044261,0.21676503,803.78,802.51,2.7980894]
[1754857045264,0.21676503,803.78,802.52,2.7980894]
[1754857045864,0.21676503,803.78,802.53,2.7980894]
[1754857046465,0.21676503,803.78,802.52,2.7980894]
[1754857048972,0.21676503,803.78,802.65,2.7980894]
[1754857049971,0.21676503,803.78,802.47,2.7980894]
[1754857052075,0.21676503,803.78,802.46,2.7980894]
[1754857052678,0.21676503,803.78,802.49,2.7980894]
[1754857053175,0.21676503,803.78,802.62,2.7980894]
[1754857054181,0.21676503,803.78,802.61,2.7980894]
[1754857054880,0.21676503,803.78,802.59,2.7980894]
[1754857055380,0.21676503,803.78,802.6,2.7980894]
[1754857056781,0.21676503,803.78,802.58,2.7980894]
[1754857058385,0.21676503,803.78,802.57,2.7980894]
[1754857058880,0.21676503,803.78,802.59,2.7980894]
[1754857059580,0.21676503,803.78,802.58,2.7980894]
[1754857059981,0.21676503,803.78,802.81,2.7980894]
[1754857060484,0.21676503,803.78,802.79,2.7980894]
[1754857061485,0.21676503,803.78,802.8,2.7980894]
[1754857062087,0.21676503,803.78,802.77,2.7980894]
[1754857062485,0.21676503,803.78,802.5,3.9173252]
[1754857062986,0.21676503,803.78,802.29,2.7980894]
[1754857063986,0.21676503,803.78,802.3,2.7980894]
[1754857067089,0.21676503,803.78,802.25,2.7980894]
[1754857068085,0.21676503,803.78,802.23,2.7980894]
[1754857068689,0.21676503,803.78,802.36,2.7980894]
[1754857068985,0.82796027,803.77,802.36,2.7980894]
[1754857069289,0.21676503,803.78,802.06,2.7980894]
[1754857069490,0.82792012,803.77,802.06,2.7980894]
[1754857069689,0.21676503,803.78,802.06,2.7980894]
[1754857071298,0.21676503,803.78,802.05,2.7980894]
[1754857073494,0.21676503,803.78,801.81,0.21676503]
[1754857073495,0.21676503,803.78,802.04,2.7980894]
[1754857074390,0.82764042,803.77,802.01,2.7980894]
[1754857074592,0.82764042,803.76,802.01,2.7980894]
[1754857074794,0.21676503,803.78,802.01,2.7980894]
[1754857074995,0.82762178,803.77,802.01,2.7980894]
[1754857075291,0.82762178,803.76,802.01,2.7980894]
[1754857075493,0.21676503,803.78,802.01,2.7980894]
[1754857075696,0.82757306,803.77,802.01,2.7980894]
[1754857075892,0.21676503,803.78,802.01,2.7980894]
[1754857075893,0.82757306,803.76,802.01,2.7980894]
[1754857076095,0.21676503,803.78,802.01,2.7980894]
[1754857076294,0.82753905,803.77,802.01,2.7980894]
[1754857076498,0.21676503,803.78,802.01,2.7980894]
[1754857076695,0.82752751,803.77,802.01,2.7980894]
[1754857076897,0.21676503,803.78,802.01,2.7980894]
[1754857077096,0.82752751,803.77,802.01,2.7980894]
[1754857077295,0.21676503,803.78,802.01,2.7980894]
[1754857077500,0.82752318,803.77,802.01,2.7980894]
[1754857077700,0.21676503,803.78,802.01,2.7980894]
[1754857077901,0.82752288,803.77,802.01,2.7980894]
[1754857078201,0.21676503,803.78,802.01,2.7980894]
[1754857078400,0.82749118,803.77,802.01,2.7980894]
[1754857078601,0.21676503,803.78,802.29,2.7980894]
[1754857078804,0.82751856,803.77,802.29,2.7980894]
[1754857079002,0.21676503,803.78,802.29,2.7980894]
[1754857079297,0.21676503,803.78,802.45,2.7980894]
[1754857079600,0.82751426,803.77,802.45,2.7980894]
[1754857079797,0.21676503,803.78,802.45,2.7980894]
[1754857080299,0.21676503,803.78,802.43,2.7980894]
[1754857081297,0.21676503,803.78,802.47,2.7980894]
[1754857081902,0.21676503,803.78,802.48,2.7980894]
[1754857083301,0.21676503,803.78,802.27,2.7980894]
[1754857086501,0.21676503,803.78,802.26,2.7980894]
[1754857087007,0.21676503,803.78,802.28,2.7980894]
[1754857088008,0.21676503,803.78,802.31,2.7980894]
[1754857088608,0.21676503,803.78,802.34,2.7980894]
[1754857089104,0.21676503,803.78,802.33,2.7980894]
[1754857089708,0.82698646,803.77,802.33,2.7980894]
[1754857089906,0.82698646,803.76,802.33,2.7980894]
[1754857090208,0.82698646,803.75,802.17,2.7980894]
[1754857090408,0.82698646,803.74,802.17,2.7980894]
[1754857090605,0.82698646,803.73,802.17,2.7980894]
[1754857090807,0.82698646,803.72,802.17,2.7980894]
[1754857091008,0.82698646,803.71,802.17,2.7980894]
[1754857091308,0.82698646,803.7,802.17,2.7980894]
[1754857091509,0.82698646,803.69,802.17,2.7980894]
[1754857091706,0.82698646,803.68,802.16,2.7980894]
[1754857091910,0.82698646,803.67,802.16,2.7980894]
[1754857092210,0.82698646,803.66,802.16,2.7980894]
[1754857092506,0.82698646,803.65,802.16,2.7980894]
[1754857092805,0.21676503,803.78,802.16,2.7980894]
[1754857093008,0.82696751,803.77,802.16,2.7980894]
[1754857093204,0.82696751,803.76,801.81,0.21676503]
[1754857093406,0.82696751,803.75,801.81,0.21676503]
[1754857093706,0.82696751,803.74,801.81,0.21676503]
[1754857094005,0.82696751,803.73,801.81,0.21676503]
[1754857094209,0.82696751,803.72,801.81,0.21676503]
[1754857094411,0.82696751,803.71,801.81,0.21676503]
[1754857094613,0.21676503,803.78,801.81,0.21676503]
[1754857094814,0.82697115,803.77,801.81,0.21676503]
[1754857095109,0.82697115,803.76,801.81,0.21676503]
[1754857095310,0.82697115,803.75,801.82,2.7980894]
[1754857095513,0.82697115,803.74,801.82,2.7980894]
[1754857095710,0.21676503,803.78,801.82,2.7980894]
[1754857095916,0.82700695,803.77,801.81,3.01485443]
[1754857096112,0.82700695,803.76,801.81,3.01485443]
[1754857096414,0.82700695,803.75,801.81,3.01485443]
[1754857096713,0.82700695,803.74,801.81,3.01485443]
[1754857096913,0.21676503,803.78,801.81,3.01485443]
[1754857097209,0.82680762,803.77,801.81,3.01485443]
[1754857097414,0.21676503,803.78,801.82,2.7980894]
[1754857098012,0.21676503,803.78,802.2,2.7980894]
[1754857098410,0.21676503,803.78,802.18,2.7980894]
[1754857099010,0.21676503,803.78,802.4,2.7980894]
[1754857100213,0.21676503,803.78,802.52,2.7980894]
[1754857100512,0.21676503,803.78,802.48,2.7980894]
[1754857101514,0.21676503,803.78,802.45,2.7980894]
[1754857103222,0.21676503,803.78,802.39,2.7980894]
[1754857104119,0.21676503,803.78,802.38,2.7980894]
[1754857104629,0.21676503,803.78,802.37,2.7980894]
[1754857105123,0.21676503,803.78,802.35,2.7980894]
[1754857105628,0.21676503,803.78,802.34,2.7980894]
[1754857106228,0.21676503,803.78,802.33,2.7980894]
[1754857107229,0.21676503,803.78,802.32,2.7980894]
[1754857109232,0.21676503,803.78,802.33,2.7980894]
[1754857109829,0.21676503,803.78,802.32,2.7980894]
[1754857111431,0.21676503,803.78,802.34,2.7980894]
[1754857112126,0.21676503,803.78,802.32,2.7980894]
[1754857112430,0.21676503,803.78,802.3,2.7980894]
[1754857113027,0.21676503,803.78,802.35,2.7980894]
[1754857113427,0.21676503,803.78,802.34,2.7980894]
[1754857114030,0.21676503,803.78,802.13,2.7980894]
[1754857114432,0.21676503,803.78,802.14,2.7980894]
[1754857115029,0.21676503,803.78,802.13,2.7980894]
[1754857115633,0.82701392,803.77,802.13,2.7980894]
[1754857115833,0.82700236,803.76,802.13,2.7980894]
[1754857116033,0.21676503,803.78,802.12,2.7980894]
[1754857116333,0.82710765,803.77,802.12,2.7980894]
[1754857116534,0.21676503,803.78,802.14,2.7980894]
[1754857116735,0.82711683,803.77,802.14,2.7980894]
[1754857116933,0.21676503,803.78,802.14,2.7980894]
[1754857117132,0.82711745,803.77,802.12,2.7980894]
[1754857117436,0.82711745,803.76,802.12,2.7980894]
[1754857117632,0.82711745,803.75,801.87,2.7980894]
[1754857117835,0.82711745,803.74,801.87,2.7980894]
[1754857118136,0.82711745,803.73,801.87,2.7980894]
[1754857118432,0.82711745,803.72,801.87,2.7980894]
[1754857118636,0.82711745,803.71,802.0,2.7980894]
[1754857118834,0.82711745,803.7,802.0,2.7980894]
[1754857119138,0.21676503,803.78,801.99,2.7980894]
[1754857119139,0.82735785,803.69,801.99,2.7980894]
[1754857119434,0.21676503,803.78,801.99,2.7980894]
[1754857119638,0.82732703,803.77,801.99,2.7980894]
[1754857119838,0.82732703,803.76,801.99,2.7980894]
[1754857120034,0.82732703,803.75,801.99,2.7980894]
[1754857120235,0.82732703,803.74,802.02,2.7980894]
[1754857120434,0.82732703,803.73,802.02,2.7980894]
[1754857120632,0.82732703,803.72,802.02,2.7980894]
[1754857120835,0.21676503,803.78,802.02,2.7980894]
[1754857121037,0.82738348,803.77,802.02,2.7980894]
[1754857121239,0.82738348,803.76,802.02,2.7980894]
[1754857121538,0.21676503,803.78,802.02,2.7980894]
[1754857121539,0.82738348,803.75,802.02,2.7980894]
[1754857121735,0.82738348,803.75,801.81,0.21676503]
[1754857121736,0.82738348,803.74,802.0,2.7980894]
[1754857121940,0.21676503,803.78,802.0,2.7980894]
[1754857122240,0.21676503,803.78,801.95,2.7980894]
[1754857123338,0.21676503,803.78,801.93,2.7980894]
[1754857126442,0.21676503,803.78,801.94,2.7980894]
[1754857130144,0.21676503,803.78,801.96,2.7980894]
[1754857131146,0.21676503,803.78,801.95,2.7980894]
[1754857131648,0.21676503,803.78,801.96,2.7980894]
[1754857132047,0.21676503,803.78,801.81,0.21676503]
[1754857132048,0.82812667,803.77,801.99,2.7980894]
[1754857132247,0.82812667,803.76,801.81,0.21676503]
[1754857132445,0.82812667,803.75,801.81,0.21676503]
[1754857132647,0.82812667,803.74,801.42,2.7980894]
[1754857132952,0.82812667,803.73,801.69,0.21693326]
[1754857133151,0.21676503,803.78,801.69,0.21693326]
[1754857133152,0.82812667,803.72,801.69,0.21693326]
[1754857133446,0.21676503,803.78,801.72,2.7980894]
[1754857133447,0.82812667,803.71,801.72,2.7980894]
[1754857133646,0.82812667,803.7,801.72,2.7980894]
[1754857133844,0.82812667,803.69,801.69,3.01502266]
[1754857134050,1.66078816,803.68,801.69,3.01502266]
[1754857134248,0.82812667,803.67,801.69,3.01502266]
[1754857134448,1.66078816,803.66,801.87,2.7980894]
[1754857134647,1.66078816,803.65,801.87,2.7980894]
[1754857134854,0.83266149,803.61,801.87,2.7980894]
[1754857135046,0.82812667,803.6,802.02,2.7980894]
[1754857135251,0.83266149,803.57,801.56,3.9173252]
[1754857135450,0.82812667,803.56,801.56,3.9173252]
[1754857135650,0.82812667,803.55,801.48,2.7980894]
[1754857135950,0.82812667,803.54,801.47,3.01503078]
[1754857136151,0.82812667,803.53,801.47,3.01503078]
[1754857136356,0.82812667,803.52,801.37,2.7980894]
[1754857136555,0.83266149,803.36,801.29,0.2170036]
[1754857136754,0.83266149,803.34,801.29,0.2170036]
[1754857136956,0.82812667,803.33,801.29,0.2170036]
[1754857137257,0.82812667,803.32,801.29,0.2170036]
[1754857137452,0.82812667,803.31,801.29,0.2170036]
[1754857137653,0.82812667,803.3,801.29,0.2170036]
[1754857137850,0.82812667,803.29,801.29,0.2170036]
[1754857138056,0.82812667,803.28,801.29,0.2170036]
[1754857138253,0.82812667,803.27,801.29,0.2170036]
[1754857138454,0.82812667,803.26,801.29,0.2170036]
[1754857138652,0.82812667,803.25,801.29,0.2170036]
[1754857138951,0.82812667,803.24,801.29,0.2170036]
[1754857139151,0.82812667,803.23,801.29,0.2170036]
[1754857139359,0.82812667,803.22,801.29,0.2170036]
[1754857139558,0.82812667,803.21,801.29,0.2170036]
[1754857139757,0.82812667,803.2,801.29,0.2170036]
[1754857139953,0.82812667,803.19,801.29,0.2170036]
[1754857140258,0.82812667,803.18,801.29,0.2170036]
[1754857140556,0.21676503,803.78,801.29,0.2170036]
[1754857140557,0.82812667,803.17,801.29,0.2170036]
[1754857140758,0.82812667,803.16,801.29,0.2170036]
[1754857140957,0.82812667,803.15,801.29,0.2170036]
[1754857141159,0.82812667,803.14,801.29,0.2170036]
[1754857141355,0.82812667,803.13,801.29,0.2170036]
[1754857141554,0.82812667,803.12,801.29,0.2170036]
[1754857141858,0.82812667,803.11,801.29,0.2170036]
[1754857142060,0.82812667,803.1,801.29,0.2170036]
[1754857142259,0.82812667,803.09,801.29,0.2170036]
[1754857142459,0.82812667,803.08,801.29,0.2170036]
[1754857142658,0.82812667,803.07,801.29,0.2170036]
[1754857142960,0.83266149,803.52,801.29,0.2170036]
[1754857143159,1.63274862,803.51,801.29,0.2170036]
[1754857143358,0.80008713,803.5,801.29,0.2170036]
[1754857143553,0.80008713,803.49,801.29,0.2170036]
[1754857143855,0.80008713,803.48,801.29,0.2170036]
[1754857144059,0.80008713,803.47,801.29,0.2170036]
[1754857144263,0.80008713,803.46,801.29,0.2170036]
[1754857144456,0.80008713,803.45,801.29,0.2170036]
[1754857144657,0.80008713,803.44,801.29,0.2170036]
[1754857144957,0.80008713,803.43,801.29,0.2170036]
[1754857145158,0.80008713,803.42,801.29,0.2170036]
[1754857145359,0.80008713,803.41,801.29,0.2170036]
[1754857145656,0.80008713,803.4,801.29,0.2170036]
[1754857145859,0.80008713,803.39,801.29,0.2170036]
[1754857146063,0.80008713,803.38,801.29,0.2170036]
[1754857146261,0.80008713,803.37,801.29,0.2170036]
[1754857146462,0.80008713,803.36,801.29,0.2170036]
[1754857146662,0.80008713,803.35,801.29,0.2170036]
[1754857146857,0.80008713,803.34,801.29,0.2170036]
[1754857147056,0.80008713,803.33,801.29,0.2170036]
[1754857147258,0.80008713,803.32,801.29,0.2170036]
[1754857147461,0.83266149,803.48,801.29,0.2170036]
[1754857147462,0.80008713,803.31,801.29,0.2170036]
[1754857147660,0.80008713,803.3,801.29,0.2170036]
[1754857147858,0.80008713,803.29,801.29,0.2170036]
[1754857148057,0.80008713,803.28,801.29,0.2170036]
[1754857148260,0.83266149,803.48,801.29,0.2170036]
[1754857148261,0.80008713,803.27,801.29,0.2170036]
[1754857148461,0.80008713,803.26,801.29,0.2170036]
[1754857148757,0.80008713,803.25,801.29,0.2170036]
[1754857148961,0.80008713,803.24,801.29,0.2170036]
[1754857149161,0.80008713,803.23,801.29,0.2170036]
[1754857149356,0.80008713,803.22,801.29,0.2170036]
[1754857149561,0.80008713,803.21,801.29,0.2170036]
[1754857149757,0.80008713,803.2,801.29,0.2170036]
[1754857149957,0.80008713,803.19,801.29,0.2170036]
[1754857150158,0.79796527,803.18,801.29,0.2170036]
[1754857150363,0.83266149,803.67,801.29,0.2170036]
[1754857150561,0.79796046,803.66,801.29,0.2170036]
[1754857150758,0.79796046,803.65,801.29,0.2170036]
[1754857150959,0.79796046,803.64,801.29,0.2170036]
[1754857151163,0.21676503,803.78,801.29,0.2170036]
[1754857151164,0.79796046,803.63,801.29,0.2170036]
[1754857151464,0.83266149,803.57,801.29,0.2170036]
[1754857151664,0.79796046,803.56,801.29,0.2170036]
[1754857151864,0.79796046,803.55,801.29,0.2170036]
[1754857152162,0.79796046,803.54,801.29,0.2170036]
[1754857152361,0.79796046,803.53,801.29,0.2170036]
[1754857152564,0.79796046,803.52,801.29,0.2170036]
[1754857152763,0.79796046,803.51,801.29,0.2170036]
[1754857152965,0.79796046,803.5,801.29,0.2170036]
[1754857153273,0.79796046,803.49,801.29,0.2170036]
[1754857153563,0.79796046,803.48,801.29,0.2170036]
[1754857153758,0.79796046,803.47,801.29,0.2170036]
[1754857153962,0.79796046,803.46,801.29,0.2170036]
[1754857154163,0.79796046,803.45,801.29,0.2170036]
[1754857154364,0.79796046,803.44,801.29,0.2170036]
[1754857154562,0.79796046,803.43,801.29,0.2170036]
[1754857154759,0.79796046,803.42,801.29,0.2170036]
[1754857154965,0.79796046,803.41,801.29,0.2170036]
[1754857155162,0.83266149,803.57,801.29,0.2170036]
[1754857155163,0.79796046,803.4,801.29,0.2170036]
[1754857155367,0.79796046,803.39,801.29,0.2170036]
[1754857155666,0.79796046,803.38,801.29,0.2170036]
[1754857155865,0.79796046,803.37,801.29,0.2170036]
[1754857156066,0.79796046,803.36,801.29,0.2170036]
[1754857156363,0.79796046,803.35,801.29,0.2170036]
[1754857156568,0.79796046,803.34,801.29,0.2170036]
[1754857156768,0.79796046,803.33,801.29,0.2170036]
[1754857156969,0.79796046,803.32,801.29,0.2170036]
[1754857157271,0.79796046,803.31,801.29,0.2170036]
[1754857157569,0.79796046,803.3,801.29,0.2170036]
[1754857157868,0.79796046,803.29,801.29,0.2170036]
[1754857158068,0.79796046,803.28,801.29,0.2170036]
[1754857158370,0.79796046,803.27,801.29,0.2170036]
[1754857158564,0.79331639,803.26,801.29,0.2170036]
[1754857158766,0.83266149,803.53,801.29,0.2170036]
[1754857158969,0.79332086,803.52,801.29,0.2170036]
[1754857159265,0.79332086,803.51,801.29,0.2170036]
[1754857159469,0.79332086,803.5,801.29,0.2170036]
[1754857159765,0.79332086,803.49,801.29,0.2170036]
[1754857159966,0.79332086,803.48,801.29,0.2170036]
[1754857160167,0.79332086,803.47,801.29,0.2170036]
[1754857160370,0.79332086,803.46,801.29,0.2170036]
[1754857160571,0.79332086,803.45,801.29,0.2170036]
[1754857160776,0.79332086,803.44,801.29,0.2170036]
[1754857160971,0.79332086,803.43,801.29,0.2170036]
[1754857161266,0.79332086,803.42,801.29,0.2170036]
[1754857161471,0.79332086,803.41,801.29,0.2170036]
[1754857161670,0.79332086,803.4,801.29,0.2170036]
[1754857161871,0.79332086,803.39,801.29,0.2170036]
[1754857162068,0.79332086,803.38,801.29,0.2170036]
[1754857162273,0.79332086,803.37,801.29,0.2170036]
[1754857162573,0.79332086,803.36,801.29,0.2170036]
[1754857162775,0.79332086,803.35,801.29,0.2170036]
[1754857163074,0.79332086,803.34,801.29,0.2170036]
[1754857163275,0.79332086,803.33,801.29,0.2170036]
[1754857163476,0.79332086,803.32,801.29,0.2170036]
[1754857163771,0.79332086,803.31,801.29,0.2170036]
[1754857163975,0.79332086,803.3,801.29,0.2170036]
[1754857164176,0.79332086,803.29,801.29,0.2170036]
[1754857164472,0.79332086,803.28,801.29,0.2170036]
[1754857164672,0.79332086,803.27,801.29,0.2170036]
[1754857164872,0.83266149,803.58,801.29,0.2170036]
[1754857165171,0.79372943,803.57,801.29,0.2170036]
[1754857165375,0.79372943,803.56,801.29,0.2170036]
[1754857165574,0.79372943,803.55,801.29,0.2170036]
[1754857165772,0.79372943,803.54,801.29,0.2170036]
[1754857165972,0.79372943,803.53,801.29,0.2170036]
[1754857166174,0.79372943,803.52,801.29,0.2170036]
[1754857166373,0.79372943,803.51,801.29,0.2170036]
[1754857166676,0.21676503,803.78,801.29,0.2170036]
[1754857166677,0.79372943,803.5,801.29,0.2170036]
[1754857166873,0.79372943,803.49,801.29,0.2170036]
[1754857167076,0.79372943,803.48,801.29,0.2170036]
[1754857167377,0.79372943,803.47,801.29,0.2170036]
[1754857167673,0.79372943,803.46,801.29,0.2170036]
[1754857167878,0.79372943,803.45,801.29,0.2170036]
[1754857168177,0.79372943,803.44,801.29,0.2170036]
[1754857168381,0.79372943,803.43,801.29,0.2170036]
[1754857168677,0.79372943,803.42,801.29,0.2170036]
[1754857168879,0.79372943,803.41,801.29,0.2170036]
[1754857169178,0.79372943,803.4,801.29,0.2170036]
[1754857169380,0.79372943,803.39,801.29,0.2170036]
[1754857169582,0.79372943,803.38,801.29,0.2170036]
[1754857169778,0.79372943,803.37,801.29,0.2170036]
[1754857169978,0.79372943,803.36,801.29,0.2170036]
[1754857170184,0.79372943,803.35,801.29,0.2170036]
[1754857170480,0.79372943,803.34,801.29,0.2170036]
[1754857170684,0.79372943,803.33,801.29,0.2170036]
[1754857170884,0.79372943,803.32,801.29,0.2170036]
[1754857171082,0.79372943,803.31,801.29,0.2170036]
[1754857171286,0.79372943,803.3,801.29,0.2170036]
[1754857171480,0.79372943,803.29,801.29,0.2170036]
[1754857171682,0.83266149,803.59,801.29,0.2170036]
[1754857171883,0.79485629,803.58,801.29,0.2170036]
[1754857172090,0.79485629,803.57,801.29,0.2170036]
[1754857172387,0.79485629,803.56,801.29,0.2170036]
[1754857172587,0.79485629,803.55,801.29,0.2170036]
[1754857172783,0.79485629,803.54,801.29,0.2170036]
[1754857172982,0.79485629,803.53,801.29,0.2170036]
[1754857173287,0.79485629,803.52,801.48,2.7980894]
[1754857173487,0.79485629,803.51,801.48,2.7980894]
[1754857173684,0.83266149,803.56,801.29,0.2170036]
[1754857173685,0.79485629,803.5,801.5,2.7980894]
[1754857173988,0.79485629,803.49,801.5,2.7980894]
[1754857174188,0.79485629,803.48,801.5,2.7980894]
[1754857174390,0.79485629,803.47,801.5,2.7980894]
[1754857174586,0.79485629,803.46,801.46,2.7980894]
[1754857174790,0.79485629,803.45,801.46,2.7980894]
[1754857174986,0.79485629,803.44,801.46,2.7980894]
[1754857175185,0.79485629,803.43,801.46,2.7980894]
[1754857175391,0.79485629,803.42,801.46,2.7980894]
[1754857175590,0.79485629,803.41,801.46,2.7980894]
[1754857175891,0.79485629,803.4,801.29,0.2170036]
[1754857176086,0.79485629,803.39,801.29,0.2170036]
[1754857176286,0.79485629,803.38,801.29,0.2170036]
[1754857176491,0.79485629,803.37,801.29,0.2170036]
[1754857176687,0.79485629,803.36,801.29,0.2170036]
[1754857176887,0.79485629,803.35,801.29,0.2170036]
[1754857177187,0.79485629,803.34,801.29,0.2170036]
[1754857177391,0.79485629,803.33,801.29,0.2170036]
[1754857177592,0.79485629,803.32,801.29,0.2170036]
[1754857177792,0.79485629,803.31,801.29,0.2170036]
[1754857177992,0.79485629,803.3,801.29,0.2170036]
[1754857178192,0.79485629,803.29,801.29,0.2170036]
[1754857178495,0.79485629,803.28,801.29,0.2170036]
[1754857178692,0.79485629,803.27,801.29,0.2170036]
[1754857178992,0.83266149,803.68,801.29,0.2170036]
[1754857179194,0.79597586,803.67,801.29,0.2170036]
[1754857179394,0.79597586,803.66,801.29,0.2170036]
[1754857179593,0.79597586,803.65,801.29,0.2170036]
[1754857179791,0.79597586,803.64,801.29,0.2170036]
[1754857180091,0.79597586,803.63,801.29,0.2170036]
[1754857180294,0.79597586,803.62,801.29,0.2170036]
[1754857180496,0.79597586,803.61,801.29,0.2170036]
[1754857180691,0.79597586,803.6,801.29,0.2170036]
[1754857180892,0.79597586,803.59,801.29,0.2170036]
[1754857181092,0.79597586,803.58,801.29,0.2170036]
[1754857181297,0.79597586,803.57,801.29,0.2170036]
[1754857181591,0.79597586,803.56,801.29,0.2170036]
[1754857181794,0.79597586,803.55,801.29,0.2170036]
[1754857181996,0.79597586,803.54,801.29,0.2170036]
[1754857182194,0.79597586,803.53,801.29,0.2170036]
[1754857182394,0.79597586,803.52,801.29,0.2170036]
[1754857182594,0.79597586,803.51,801.29,0.2170036]
[1754857182894,0.79597586,803.5,801.29,0.2170036]
[1754857183094,0.79597586,803.49,801.29,0.2170036]
[1754857183299,0.79597586,803.48,801.29,0.2170036]
[1754857183498,0.79597586,803.47,801.29,0.2170036]
[1754857183794,0.79597586,803.46,801.29,0.2170036]
[1754857184100,0.79597586,803.45,801.29,0.2170036]
[1754857184394,0.79597586,803.44,801.29,0.2170036]
[1754857184598,0.79597586,803.43,801.29,0.2170036]
[1754857184898,0.79597586,803.42,801.29,0.2170036]
[1754857185095,0.79597586,803.41,801.29,0.2170036]
[1754857185296,0.79597586,803.4,801.29,0.2170036]
[1754857185494,0.79597586,803.39,801.29,0.2170036]
[1754857185699,0.79597586,803.38,801.29,0.2170036]
[1754857185900,0.79597586,803.75,801.29,0.2170036]
[1754857186095,0.79597586,803.74,801.29,0.2170036]
[1754857186301,0.79597586,803.73,801.29,0.2170036]
[1754857186600,0.79597586,803.72,801.29,0.2170036]
[1754857186798,0.79597586,803.71,801.29,0.2170036]
[1754857186994,0.21676503,803.78,801.29,0.2170036]
[1754857186995,0.79597586,803.7,801.97,1.6721012]
[1754857187197,0.79597586,803.69,802.02,1.6721012]
[1754857187401,0.79597586,803.68,802.01,1.6721012]
[1754857187597,0.79597586,803.67,802.01,1.6721012]
[1754857187796,0.79597586,803.66,802.01,1.6721012]
[1754857187995,0.79597586,803.65,802.01,1.6721012]
[1754857188200,0.79597586,803.64,802.06,1.6721012]
[1754857188500,0.79597586,803.63,802.06,1.6721012]
[1754857188697,0.79597586,803.62,802.06,1.6721012]
[1754857188899,0.79597586,803.61,802.06,1.6721012]
[1754857189098,0.79597586,803.6,802.06,1.6721012]
[1754857189300,0.79597586,803.59,802.13,1.6721012]
[1754857189500,0.79597586,803.58,802.13,1.6721012]
[1754857189797,0.79597586,803.57,802.01,1.6721012]
[1754857189996,0.79597586,803.56,802.01,1.6721012]
[1754857190296,0.79597586,803.56,801.29,0.2170036]
[1754857190297,0.79597586,803.55,802.09,1.6721012]
[1754857190498,0.79597586,803.54,802.09,1.6721012]
[1754857190701,0.79597586,803.53,802.09,1.6721012]
[1754857190900,0.79597586,803.52,802.09,1.6721012]
[1754857191098,0.79597586,803.51,802.09,1.6721012]
[1754857191397,0.79597586,803.5,802.14,1.6721012]
[1754857191599,0.79597586,803.49,802.14,1.6721012]
[1754857191800,0.79597586,803.48,802.14,1.6721012]
[1754857191996,0.79597586,803.47,802.14,1.6721012]
[1754857192201,0.79597586,803.46,802.14,1.6721012]
[1754857192398,0.79597586,803.45,802.17,1.6721012]
[1754857192698,0.79597586,803.44,802.17,1.6721012]
[1754857193001,0.79597586,803.43,802.17,1.6721012]
[1754857193198,0.79597586,803.42,802.17,1.6721012]
[1754857193403,0.79597586,803.41,802.17,1.6721012]
[1754857193603,0.79597586,803.4,802.17,1.6721012]
[1754857193803,0.79597586,803.39,802.17,1.6721012]
[1754857194000,0.79597586,803.38,802.17,1.6721012]
[1754857194203,0.79597586,803.37,802.17,1.6721012]
[1754857194503,0.79597586,803.36,802.17,1.6721012]